Workbook

Sheet jikkou
A1: ■試行錯誤法による中間支柱（単杭）の検討実行フロー | V1: STEP-1
N5: ※衝突荷重は別シートにより計算することができる。
B7: 計算条件の入力
B8: ↓ 下欄（赤太字の数値）への入力を行い、①～③の計算条件を設定する。
C9: ①杭基礎部材の設定 | L9: ②地盤条件の設定 | AD9: Fmax＝ | AF9: =kouzoukeisan!H81 -> 113.3857389
C10: 杭の材質 | F10: ＳＴＫ | H10: 400 | L10: 横地盤反力係数 | O10: kh＝ | Q10: 30000
C11: ヤング率 | F11: Ｅ＝ | H11: 200000000 | O11: （※N値15相当の砂地盤）
C12: 管径 | F12: Ｄ＝ | H12: 406.4 | L12: ③津波の諸元（漂流物のエネルギー）
C13: 肉厚 | F13: ｔ＝ | H13: 8 | L13: 衝突エネルギー | O13: Ｅｄ＝ | Q13: 0.668
C14: 腐食代 | F14: ⊿ｔ＝ | H14: 3 | L14: 衝突力 | O14: F1＝ | Q14: 1.423
C15: 衝突力の負担本数 | F15: n＝ | H15: 2 | L15: 衝突位置 | O15: ｈ＝ | Q15: 2 | AG15: Ｍmax＝ | AI15: =kouzoukeisan!H93 -> 252.007
AG16: ＭＲ＝ | AI16: =kouzoukeisan!H77 -> 254.536
N17: 計算条件を入力したらSTEP-1へ進む！ | AE17: ＭＲ／Ｍmax＝ | AI17: =kouzoukeisan!H100 -> 1.01
AI18: =IF(AI17>=1,"≧1.0・・・OK!","＜1.0・・・NG!") -> ≧1.0・・・OK!
B19: STEP-1：部材の確定
C20: 漂流物の衝突エネルギーを吸収できる杭の諸元を確定する。 杭に発生する曲げ応力が杭の曲げ耐力に等しくなるような反力Fmaxを求め、この反力が作用するときの杭の吸収エネルギーが衝突エネルギーを上回ることを確認して杭の断面諸元を決定する。 | AG20: Ｅｎ＝ | AI20: =kouzoukeisan!H119 -> 9.298
B24: ↓ 上記①②③の条件を入力したら下のボタンをクリックする。
J25: 衝突荷重 | N25: Fmax＝ | P25: =kouzoukeisan!H81 -> 113.3857389 | X25: Ｅｎ／Ｅｄ＝ | AB25: =kouzoukeisan!H129 -> 13.919
J26: ＭＲ／Ｍmax＝ | N26: =kouzoukeisan!H100 -> 1.01 | Q26: =IF(N26>=1,"≧1.0・・・OK!","＜1.0・・・NG!") -> ≧1.0・・・OK! | AB26: =IF(AB25>=1,"≧1.0・・・OK!","＜1.0・・・NG!") -> ≧1.0・・・OK!
J27: Ｅｎ／Ｅｄ＝ | N27: =kouzoukeisan!H129 -> 13.919 | Q27: =IF(N27>=1,"≧1.0・・・OK!","＜1.0・・・NG!") -> ≧1.0・・・OK! | V27: STEP-2
N29: =IF(N26>=1,IF(N27>=1,"STEP-1の所要を満足したのでSTEP-2へ進む！","※反力F作用時の吸収エネルギーが衝突エネルギーを下回るので、計算条件を入力し直すこと！"),"") -> STEP-1の所要を満足したのでSTEP-2へ進む！
B32: STEP-2：作用荷重の決定、杭の挙動解析（発生応力、所要根入れ長） | X32: F＝ | Z32: =kouzoukeisan!H140 -> 30.69710047
C33: STEP-1で確定した断面諸元を有する杭部材に漂流物が衝突した場合の挙動を解析する。 杭が吸収するエネルギーが衝突エネルギーに等しくなるような衝突力Fを求める。この衝突力が作用するときの杭の断面応力及び所要根入れ長を計算するとともに、杭の吸収エネルギーが衝突エネルギーに等しいことを説明する。 | X33: Ｍmax＝ | Z33: =kouzoukeisan!H151 -> 68.226
X34: ＭＲ＝ | Z34: =kouzoukeisan!H77 -> 254.536
X36: ＭＲ／Ｍmax＝ | AB36: =kouzoukeisan!H158 -> 3.73
AB37: =IF(AB36>=1,"≧1.0・・・OK!","＜1.0・・・NG!") -> ≧1.0・・・OK!
B38: ↓ STEP-1の所要を満足したら下のボタンをクリックする。
J39: 衝突荷重 | N39: F＝ | P39: =kouzoukeisan!H140 -> 30.69710047 | X39: Ｅｎ＝ | Z39: =kouzoukeisan!H190 -> 0.675
O40: =IF(P39<=P40,"＜","≧") -> ≧ | P40: =Q14 -> 1.423 | S40: =F1
J41: ＭＲ／Ｍmax＝ | N41: =kouzoukeisan!H158 -> 3.73 | Q41: =IF(N41>=1,"≧1.0・・・OK!","＜1.0・・・NG!") -> ≧1.0・・・OK!
J42: Ｅｎ／Ｅｄ＝ | N42: =kouzoukeisan!H193 -> 1.01 | Q42: =IF(N42>=1,"≧1.0・・・OK!","＜1.0・・・NG!") -> ≧1.0・・・OK!
K43: 頭部変形 | N43: ｙｔｏｐ＝ | P43: =kouzoukeisan!H171 -> 0.022
P44: =IF(P43<=R44,"≦δ15＝","＞δ15＝") -> ≦δ15＝ | R44: =kouzoukeisan!H175 -> 1.021 | X44: Ｅｎ／Ｅｄ＝ | AB44: =kouzoukeisan!H193 -> 1.01 | AD44: =IF(AB44>=1,"≧1.0・・・OK!","＜1.0・・・NG!") -> ≧1.0・・・OK!
K45: 発生応力 | N45: Ｍmax＝ | P45: =kouzoukeisan!H151 -> 68.226
N46: σmax＝ | P46: =kouzoukeisan!H155 -> 112770.248 | X46: 頭部変形 | AA46: ｙｔｏｐ＝ | AC46: =kouzoukeisan!H171 -> 0.022
K47: 所要根入れ長 | N47: ｌｍ１＝ | P47: =kouzoukeisan!H203 -> 5.06 | AB47: =IF(AC46<=AD47,"≦δ15＝","＞δ15＝") -> ≦δ15＝ | AD47: =kouzoukeisan!H175 -> 1.021
X48: 所要根入れ長 | AA48: ｌｍ１＝ | AC48: =kouzoukeisan!H203 -> 5.06
X49: 発生応力 | AA49: σmax＝ | AC49: =kouzoukeisan!H155 -> 112770.248

Sheet kouzoukeisan
A1: 中間支柱の構造計算（頭部自由杭の計算）
A2: ■計算条件
B3: ①杭基礎部材の条件
B4: ・杭の規格及び形状
C5: 杭の材質 | H5: ＳＴＫ | J5: =jikkou!H10 -> 400
C6: ヤング率 | H6: Ｅ＝ | J6: =jikkou!H11 -> 200000000 | L6: kN/㎡
C7: 管径 | H7: Ｄ＝ | J7: =jikkou!H12 -> 406.4 | L7: mm | N7: （ | O7: =ROUND(J7/1000,6) -> 0.4064 | Q7: m）
C8: 肉厚 | H8: ｔ＝ | J8: =jikkou!H13 -> 8 | L8: mm | N8: （ | O8: =ROUND(J8/1000,6) -> 0.008 | Q8: m）
C9: 腐食代 | H9: ⊿ｔ＝ | J9: =jikkou!H14 -> 3 | L9: mm | N9: （ | O9: =ROUND(J9/1000,6) -> 0.003 | Q9: m）
B10: ・杭の諸元
C11: 初期断面積 | H11: Ａ＝ | J11: =ROUND(PI()/4*(O7^2-J14^2),3) -> 0.01 | L11: ㎡
C12: 腐食後肉厚 | H12: tp＝ | J12: =ROUND(O8-O9,3) -> 0.005 | L12: m | N12: （Ｄ／tp＝ | P12: =ROUND(J13/J12,1) -> 80 | R12: =IF(P12>8,IF(P12<110,"・・・8<D/tp<110より、",">110より、"),"<8より、") -> ・・・8<D/tp<110より、
C13: 腐食後外径 | H13: Ｄ＝ | J13: =ROUND(O7-2*O9,3) -> 0.4 | L13: m | N13: =IF(P12>8,IF(P12<110,"鋼材の加工硬化を考慮した静的降伏応力の算定式の適用範囲であるものとして検討する。）","鋼管支柱の基部に局部座屈が発生する時の塑性変形を考慮して検討する。）"),"鋼管支柱の基部に局部座屈が発生する時の塑性変形を考慮して検討する。）") -> 鋼材の加工硬化を考慮した静的降伏応力の算定式の適用範囲であるものとして検討する。） | V13: =IF(P12>8,IF(P12<110,"","本プログラム適用範囲外！"),"本プログラム適用範囲外！") -> 
C14: 内径 | H14: ｄ＝ | J14: =ROUND(O7-2*O8,3) -> 0.39 | L14: m
B15: ・杭の断面性能
C16: 断面二次モーメント | H16: Ｉo＝ | J16: =ROUND(PI()*(O7^4-O8^4)/64,6) -> 0.001339 | L16: m4 | N16: （腐食前）
H17: Ｉ＝ | J17: =ROUND(PI()*(J13^4-J14^4)/64,6) -> 0.000121 | L17: m4 | N17: （腐食後）
C18: ＥＩの計算 | H18: ＥＩo＝ | J18: =ROUND(J6*J16,0) -> 267800 | L18: kN・㎡ | N18: （腐食前）
H19: ＥＩ＝ | J19: =ROUND(J6*J17,0) -> 24200 | L19: kN・㎡ | N19: （腐食後）
C20: 断面係数 | H20: Ｚ＝ | J20: =ROUND(J17*2/J13,6) -> 0.000605 | L20: m3 | N20: （腐食後）
C21: 塑性断面係数 | H21: Ｚp＝ | J21: =ROUND((J13^3-J14^3)/6,6) -> 0.00078 | L21: m3
B22: ・杭・地盤の特性値
C23: 杭幅 | H23: B＝ | J23: =J13 -> 0.4 | L23: m
H24: B・kh＝ | J24: =ROUND(J32*J23,0) -> 12000 | L24: kN/m3
C25: 特性値 | H25: βo＝ | J25: =ROUND((J24/4/J18)^(1/4),4) -> 0.3253 | L25: m-1 | N25: （腐食前）
H26: β＝ | J26: =ROUND((J24/4/J19)^(1/4),4) -> 0.5934 | L26: m-1 | N26: （腐食後）
B27: ・計算定数
H28: 材質係数： | J28: =IF(J5=400,527.5,IF(#REF!=490,703.3,"指定ERR")) -> 527.5
H29: 衝撃係数： | J29: 1.2 | N29: （固定値）
I30: 衝突力の負担本数： | J30: =jikkou!H15 -> 2 | L30: 本
B31: ②地盤条件
C32: 横地盤反力係数 | H32: kh＝ | J32: =jikkou!Q10 -> 30000 | L32: kN/m4 | N32: =jikkou!O11 -> （※N値15相当の砂地盤）
B34: ③津波の諸元
C35: 衝突エネルギー | H35: Ｅｄ＝ | J35: =jikkou!Q13 -> 0.668 | L35: kN・m
C36: 衝突位置 | H36: ｈ＝ | J36: =jikkou!Q15 -> 2 | L36: m
F39: ytop
B43: F
T44: δL
U46: D
D47: h
D54: lm1
A60: 検討モデル図
A62: ■STEP-1：部材の確定
B63: 漂流物の衝突エネルギーを吸収できる杭の諸元を確定する。 杭に発生する曲げ応力が杭の曲げ耐力に等しくなるような反力Fmaxを求め、この反力が作用するときの杭の吸収エネルギーが衝突エネルギーを上回ることを確認して杭の断面諸元を決定する。
B67: ・杭の降伏応力
C68: 加工硬化 | F68: σy＝ | H68: =$J$28 -> 527.5 | J68: ×（D／tp）-0.104
G69: ＝ | H69: =$J$28 -> 527.5 | J69: ×（ | K69: =$O$7 -> 0.4064 | M69: ／ | N69: =$O$8 -> 0.008 | P69: ）-0.104
G70: ＝ | H70: =ROUND($J$28*($O$7/$O$8)^-0.104,3) -> 350.601 | J70: N/mm3
G71: ＝ | H71: =ROUND(1000*$J$28*($O$7/$O$8)^-0.104,0) -> 350601 | J71: kN/m3
C72: 衝撃割増 | F72: σyd＝ | H72: =$J$29 -> 1.2 | J72: ×σy
G73: ＝ | H73: =$J$29 -> 1.2 | J73: × | K73: =H71 -> 350601
G74: ＝ | H74: =ROUND($J$29*H71,0) -> 420721 | J74: kN/m3
F75: ＭＲ＝ | H75: Z×σdy
G76: ＝ | H76: =$J$20 -> 0.000605 | J76: × | K76: =H74 -> 420721
G77: ＝ | H77: =ROUND($J$20*H74,3) -> 254.536 | J77: kN・m
B79: ・杭に発生する反力
C80: 杭に発生する曲げ応力が杭の曲げ耐力に等しくなるような反力Fmaxを求める。
C81: ここで、 | F81: Fmax＝ | H81: 113.3857389 | J81: kN | L81: と仮定する。
C82: これに対する杭の曲げ応力は、チャンの方法により下式を用いて算定する。
D83: （杭の最大曲げモーメント）
F84: Ｍmax＝ | H84: － | I84: （1+2βh）2+1 | L84: ・exp | N84: -tan-1 | P84: 1 | R84: ・Fmax・h
I85: 2βh | P85: 1+2βh
N86: （漁港漁場の施設の設計参考図書（2015年版）,p.266より）
F87: ＝ | H87: － | I87: （1+2× | K87: =$J$26 -> 0.5934 | M87: × | N87: =$J$36 -> 2 | P87: ）2+1
K88: 2× | L88: =$J$26 -> 0.5934 | N88: × | O88: =$J$36 -> 2
H89: ×exp | J89: -tan-1 | L89: 1
L90: 1+2× | N90: =$J$26 -> 0.5934 | P90: × | Q90: =$J$36 -> 2
H91: × | I91: =H81 -> 113.3857389 | K91: × | L91: =$J$36 -> 2
G93: ＝ | H93: =ROUND((((1+2*$J$26*$J$36)^2+1)^(1/2)/(2*$J$26*$J$36)*EXP(-ATAN(1/(1+2*$J$26*$J$36))))*H81*$J$36,3) -> 252.007 | J93: kN・m
D94: （杭の最大曲げ応力）
F95: σmax＝ | H95: Ｍmax／Z
G96: ＝ | H96: =H93 -> 252.007 | J96: ／ | K96: =$J$20 -> 0.000605
G97: ＝ | H97: =ROUND(H93/$J$20,3) -> 416540.496 | J97: kN/㎡
C98: ここで、
D99: ＭＲ／Ｍmax＝ | H99: =$H$77 -> 254.536 | J99: ／ | K99: =H93 -> 252.007
G100: ＝ | H100: =ROUNDDOWN($H$77/H93,3) -> 1.01 | J100: =IF(H100>=1,"≧1.0 となり、","＜1.0 となり、") -> ≧1.0 となり、
C101: =IF(H100>=1," 杭に発生する曲げ応力が曲げ耐力に概ね等しくなるので、上記Fmax値に対する吸収エネルギーの照査を行う。"," 杭に発生する曲げ応力が曲げ耐力を上回るので、計算条件を再設定する必要がある。") -> 杭に発生する曲げ応力が曲げ耐力に概ね等しくなるので、上記Fmax値に対する吸収エネルギーの照査を行う。
B104: ・吸収エネルギー
C105: 衝突エネルギーは、支柱の梁変形と衝突点の支柱断面の局部変形（凹み）で吸収するものとする。
C107: 梁変形による吸収エネルギーは、荷重Fmaxと変位量から以下のように求める。変位量は、チャンの方法による杭頭変位量の算定式から求める。
D109: （杭の変位量）
F110: ｙｔｏｐ＝ | H110: 2（1＋βh）3+1 | L110: ・Fmax
H111: 6EIβ3
N112: （漁港漁場の施設の設計参考図書（2015年版）,p.266より）
G113: ＝ | H113: 2×（1+ | J113: =$J$26 -> 0.5934 | L113: × | M113: =$J$36 -> 2 | O113: ）3+1 | Q113: × | R113: =H81 -> 113.3857389
I114: 6× | J114: =$J$19 -> 24200 | L114: × | M114: =$J$26 -> 0.5934 | O114: 3
G115: ＝ | H115: =ROUND((2*(1+$J$26*$J$36)^3+1)/(6*$J$19*$J$26^3)*H81,3) -> 0.082 | J115: m
D116: （梁変形による吸収エネルギー）
F117: Ｅｎ＝ | H117: n×1/2×Po×ytop
G118: ＝ | H118: =$J$30 -> 2 | I118: ×1/2× | K118: =H81 -> 113.3857389 | M118: × | N118: =H115 -> 0.082
G119: ＝ | H119: =ROUND($J$30*1/2*H81*H115,3) -> 9.298 | J119: kN・m
C120: 局部変形による吸収エネルギーは、荷重Fmaxとそれに対する凹み量から求める。
D121: （荷重Fmaxに対する凹み量）
F122: δＬ０＝ | H122: D× | J122: 4Fmax | M122: 1.25
J123: K・σyd・tp2
G124: ＝ | H124: =$J$13 -> 0.4 | J124: × | N124: 4× | O124: =H81 -> 113.3857389 | T124: 1.25
K125: 185 | M125: × | N125: =$H$74 -> 420721 | P125: × | Q125: =$J$12 -> 0.005 | S125: 2
G126: ＝ | H126: =ROUND($J$13*(4*H81/185/$H$74/$J$12^2)^1.25,3) -> 0.065 | J126: m | N126: （ここに、K：実験定数（=185））
C127: ここで、
C128: Ｅｎ／Ｅｄ＝ | H128: =H119 -> 9.298 | J128: ／ | K128: =$J$35 -> 0.668
G129: ＝ | H129: =ROUNDDOWN(H119/$J$35,3) -> 13.919 | J129: =IF(H129>=1,"≧1.0 となり、","＜1.0 となり、") -> ≧1.0 となり、
C130: =IF(H129>=1," 杭の吸収エネルギーが衝突エネルギーを上回るので、本条件により杭の諸元を確定する。"," 杭の吸収エネルギーが衝突エネルギーを下回るので、計算条件を再設定する必要がある。") -> 杭の吸収エネルギーが衝突エネルギーを上回るので、本条件により杭の諸元を確定する。
A133: ■STEP-2：作用荷重の決定、杭の挙動解析（発生応力、所要根入れ長）
B134: STEP-1で確定した断面諸元を有する杭部材に漂流物が衝突した場合の挙動を解析する。 杭が吸収するエネルギーが衝突エネルギーに等しくなるような衝突力Fを求める。この衝突力が作用するときの杭の断面応力及び所要根入れ長を計算するとともに、杭の吸収エネルギーが衝突エネルギーに等しいことを説明する。
B138: ・杭に発生する反力
C139: 杭に発生する曲げ応力が杭の曲げ耐力に等しくなるような反力Fを求める。
C140: ここで、 | F140: F＝ | H140: 30.69710047 | J140: kN | L140: と仮定する。
D141: （杭の最大曲げモーメント）
F142: Ｍmax＝ | H142: － | I142: （1+2βh）2+1 | L142: ・exp | N142: -tan-1 | P142: 1 | R142: ・F・h
I143: 2βh | P143: 1+2βh
N144: （漁港漁場の施設の設計参考図書（2015年版）,p.266より）
G145: ＝ | H145: － | I145: （1+2× | K145: =$J$26 -> 0.5934 | M145: × | N145: =$J$36 -> 2 | P145: ）2+1
K146: 2× | L146: =$J$26 -> 0.5934 | N146: × | O146: =$J$36 -> 2
H147: ×exp | J147: -tan-1 | L147: 1
L148: 1+2× | N148: =$J$26 -> 0.5934 | P148: × | Q148: =$J$36 -> 2
H149: × | I149: =H140 -> 30.69710047 | K149: × | L149: =$J$36 -> 2
G151: ＝ | H151: =ROUND((((1+2*$J$26*$J$36)^2+1)^(1/2)/(2*$J$26*$J$36)*EXP(-ATAN(1/(1+2*$J$26*$J$36))))*H140*$J$36,3) -> 68.226 | J151: kN・m
D152: （杭の最大曲げ応力）
F153: σmax＝ | H153: Ｍmax／Z
G154: ＝ | H154: =H151 -> 68.226 | J154: ／ | K154: =$J$20 -> 0.000605
G155: ＝ | H155: =ROUND(H151/$J$20,3) -> 112770.248 | J155: kN/㎡
C156: ここで、
D157: ＭＲ／Ｍmax＝ | H157: =$H$77 -> 254.536 | J157: ／ | K157: =H151 -> 68.226
G158: ＝ | H158: =ROUNDDOWN($H$77/H151,3) -> 3.73 | J158: =IF(H157>=1,"≧1.0 となり、","＜1.0 となり、") -> ≧1.0 となり、
C159: =IF(H158>=1," 杭の曲げ耐力が曲げ応力を上回ることを確認した。"," 杭に発生する曲げ応力が杭の曲げ耐力を上回るので、計算条件を再設定する必要がある。") -> 杭の曲げ耐力が曲げ応力を上回ることを確認した。
B162: ・吸収エネルギー
C163: 梁変形による吸収エネルギーは、荷重Fと変位量から以下のように求める。変位量は、チャンの方法による杭頭変位量の算定式から求める。
D165: （杭の変位量）
F166: ｙｔｏｐ＝ | H166: 2（1＋βh）3+1 | L166: ・F
H167: 6EIβ3
N168: （漁港漁場の施設の設計参考図書（2015年版）,p.266より）
G169: ＝ | H169: 2×（1+ | J169: =$J$26 -> 0.5934 | L169: × | M169: =$J$36 -> 2 | O169: ）3+1 | Q169: × | R169: =H140 -> 30.69710047
I170: 6× | J170: =$J$19 -> 24200 | L170: × | M170: =$J$26 -> 0.5934 | O170: 3
G171: ＝ | H171: =ROUND((2*(1+$J$26*$J$36)^3+1)/(6*$J$19*$J$26^3)*H140,3) -> 0.022 | J171: m
D172: （杭の許容変位量）
F173: δ15＝ | H173: （h＋ly1）×tan15°
G174: ＝ | H174: （ | I174: =$J$36 -> 2 | K174: ＋ | L174: =K181 -> 1.809 | N174: ）× | O174: tan15°
G175: ＝ | H175: =ROUND(($J$36+K181)*TAN(PI()/180*15),3) -> 1.021 | J175: m
F176: ここに、
F177: ly1（第１不動点）＝ | K177: 1 | L177: ・tan-1 | N177: （1＋βh）
K178: β | N178: βh
J179: ＝ | K179: 1 | M179: ×tan-1 | O179: （1+ | P179: =$J$26 -> 0.5934 | R179: × | S179: =$J$36 -> 2 | U179: ）
K180: =$J$26 -> 0.5934 | P180: =$J$26 -> 0.5934 | R180: × | S180: =$J$36 -> 2
J181: ＝ | K181: =ROUND(1/$J$26*ATAN((1+$J$26*$J$36)/($J$26*$J$36)),3) -> 1.809 | M181: m
C183: ここで、
F184: ｙｔｏｐ＝ | H184: =H171 -> 0.022 | J184: =IF(H184<=K184,"≦","＞") -> ≦ | K184: =H175 -> 1.021 | M184: ＝ | N184: δ15 | P184: となり、
C185: =IF(H184<=K184," 杭の変位量が許容値以下となる。"," 杭の変位量が許容値を上回るので計算条件を再設定する必要がある。") -> 杭の変位量が許容値以下となる。
D187: （梁変形による吸収エネルギー）
F188: Ｅｎ＝ | H188: n×1/2×F×ytop
G189: ＝ | H189: =$J$30 -> 2 | I189: ×1/2× | K189: =H140 -> 30.69710047 | M189: × | N189: =H171 -> 0.022
G190: ＝ | H190: =ROUND($J$30*1/2*H140*H171,3) -> 0.675 | J190: kN・m
C191: ここで、
C192: Ｅｎ／Ｅｄ＝ | H192: =H190 -> 0.675 | J192: ／ | K192: =$J$35 -> 0.668
G193: ＝ | H193: =ROUNDDOWN(H190/$J$35,3) -> 1.01 | J193: =IF(H193>=1,"≧1.0 となり、","＜1.0 となり、") -> ≧1.0 となり、
C194: =IF(H193>=1," 杭の吸収エネルギーが衝突エネルギーと概ね等しくなる。"," 杭の吸収エネルギーが衝突エネルギーを下回るので、計算条件を再設定する必要がある。") -> 杭の吸収エネルギーが衝突エネルギーと概ね等しくなる。
B197: ・根入れ長の決定
C198: 杭の所要根入れ長は、チャンの式により算定する。
F199: ｌｍ１＝ | H199: 3
H200: β
G201: ＝ | H201: 3
H202: =$J$26 -> 0.5934
G203: ＝ | H203: =ROUND(3/$J$26,2) -> 5.06 | J203: m

Sheet colliding_force（車両）
A1: 漂流物（車両）の衝突エネルギーの計算
A2: ■計算条件
B3: ①漂流物の諸元
B4: 設計漂流物として、吃水が浸水深位内となる対象漂流物の中で重量が最大となる以下を用いる。
B6: ・漂流物諸元
C7: 名称 | J7: 普通乗用車
C8: 全長 | H8: L＝ | J8: 5 | L8: m
C9: 車幅 | H9: B＝ | J9: 2 | L9: m
C10: 重量 | H10: Wo＝ | J10: 24.5 | L10: kN
C11: 空荷吃水 | H11: Do＝ | J11: =ROUND((J10/10.1)/(J8*J9),2) -> 0.24 | L11: m | N11: ※車両の吃水＝（カタログ重量÷海水の単位体積重量）／（車両の長さ×幅）
C12: 重力加速度 | H12: g＝ | J12: 9.81 | L12: m2/sec
B14: ②津波の諸元
B15: 津波の諸元については、津波漂流物対策施設を整備する●●漁港における当該箇所の津波シミュレーション結果から、現実的な対策レベルから大きく外れていないと推定される範囲の外力値を設定する。
B18: ・津波諸元
C19: 浸水深 | H19: h＝ | J19: 2 | L19: m
C20: 流速 | H20: VH＝ | J20: 0.71 | L20: m/sec
A22: ■衝突エネルギーの計算
B23: （車両の仮想重量）
D24: W＝ | F24: Wo＋（π/4）Do2×L×γw
E25: ＝ | F25: =$J$10 -> 24.5 | H25: ＋（π/4） | J25: × | K25: =$J$11 -> 0.24 | M25: 2× | N25: =$J$8 -> 5 | P25: × | Q25: 10.1
E26: ＝ | F26: =ROUND($J$10+(PI()/4)*$J$11^2*$J$8*10.1,3) -> 26.785 | H26: kN
D27: ここに、
E28: γw： | G28: 海水の単位体積重量 | L28: （kN/m3）
B30: （車両の衝突エネルギー）
B31: 衝突エネルギーは以下のとおり算定する。
D32: Ed＝ | F32: W | G32: × | H32: VH2
G33: 2g
E34: ＝ | F34: =F26 -> 26.785 | H34: × | I34: =$J$20 -> 0.71 | K34: 2
F35: 2 | H35: × | I35: =$J$12 -> 9.81
E36: ＝ | F36: =ROUND(F26*$J$20^2/2/$J$12,3) -> 0.688 | H36: kN・m

Sheet colliding_force（船舶）
A1: 漂流物（船舶）の衝突エネルギーの計算
A2: ■計算条件
B3: ①漂流物の諸元
B4: 設計漂流物として、吃水が浸水深位内となる対象漂流物の中で重量が最大となる以下を用いる。
B6: ・漂流物諸元
C7: 名称 | J7: 漁船●●G.T.
C8: 全長 | H8: L＝ | J8: 21.4 | L8: m
C9: 車幅 | H9: B＝ | J9: 5.1 | L9: m
C10: 排水トン数 | H10: Wo＝ | J10: 600 | L10: kN
C11: 空荷吃水 | H11: Do＝ | J11: 1 | L11: m
C12: 重力加速度 | H12: g＝ | J12: 9.81 | L12: m2/sec
B14: ②津波の諸元
B15: 津波の諸元については、津波漂流物対策施設を整備する●●漁港における当該箇所の津波シミュレーション結果から、現実的な対策レベルから大きく外れていないと推定される範囲の外力値を設定する。
B18: ・津波諸元
C19: 浸水深 | H19: h＝ | J19: 1.5 | L19: m
C20: 流速 | H20: VH＝ | J20: 1.1 | L20: m/sec
A22: ■衝突エネルギーの計算
B23: （船舶の仮想重量）
D24: W＝ | F24: Wo＋（π/4）Do2×L×γw
E25: ＝ | F25: =$J$10 -> 600 | H25: ＋（π/4） | J25: × | K25: =$J$11 -> 1 | M25: 2× | N25: =$J$8 -> 21.4 | P25: × | Q25: 10.1
E26: ＝ | F26: =ROUND($J$10+(PI()/4)*$J$11^2*$J$8*10.1,3) -> 769.756 | H26: kN
D27: ここに、
E28: γw： | G28: 海水の単位体積重量 | L28: （kN/m3）
B30: （船舶の衝突エネルギー）
B31: 衝突エネルギーは、1/4点衝突（船の回転により衝突エネルギーが消費されるもの）として、以下のとおり算定する。
D33: Ed＝ | F33: W | G33: × | H33: VH2
G34: 4g
E35: ＝ | F35: =F26 -> 769.756 | H35: × | I35: =$J$20 -> 1.1 | K35: 2
F36: 4 | H36: × | I36: =$J$12 -> 9.81
E37: ＝ | F37: =ROUND(F26*$J$20^2/4/$J$12,3) -> 23.736 | H37: kN・m

Sheet collision_energy (池野式)
A1: 池野らの式による漂流物の衝突力の計算
A2: ■計算条件
B3: ①漂流物の諸元
B4: 設計漂流物として、吃水が浸水深位内となる対象漂流物の中で重量が最大となる以下を用いる。
B6: ・漂流物諸元
C7: 名称 | J7: 普通乗用車
C8: 漂流物の高さ | H8: D＝ | J8: 2 | L8: m
C9: 全長 | H9: L＝ | J9: 5 | L9: m
C10: 質量 | H10: M＝ | J10: 2.5 | L10: t
C11: 付加質量係数 | H11: CMA＝ | J11: =IF(M11=X11,W11,IF(M11=X12,W12,IF(M11=X13,W13,IF(M11=X14,W14,IF(M11=X15,W15,IF(M11=X16,W16,IF(M11=X17,W17,IF(M11=X18,W18,IF(M11=X19,W19,IF(M11=X20,W20)))))))))) -> 2 | M11: （円柱横向き（二次元）） | W11: 2 | X11: （円柱横向き（二次元））
C12: 重力加速度 | H12: g＝ | J12: 9.81 | L12: m2/sec | W12: 1.5 | X12: （円柱横向き（三次元））
C13: 係数 | H13: S＝ | J13: 5 | W13: 2 | X13: （角柱横向き（二次元）①）
W14: 2.5 | X14: （角柱横向き（二次元）②）
B15: ②津波の諸元 | W15: 3 | X15: （角柱横向き（二次元）③）
B16: 津波の諸元については、津波漂流物対策施設を整備する●●漁港における当該箇所の津波シミュレーション結果から、現実的な対策レベルから大きく外れていないと推定される範囲の外力値を設定する。 | W16: 3.5 | X16: （角柱横向き（二次元）④）
W17: 4 | X17: （角柱横向き（二次元）⑤）
W18: 1.5 | X18: （角柱横向き（三次元））
B19: ・津波諸元 | W19: 2 | X19: （円柱縦向き）
C20: 浸水深 | H20: h＝ | J20: 2 | L20: m | W20: 0.8 | X20: （球）
C21: 流速 | H21: VH＝ | J21: 0.71 | L21: m/sec
A23: ■衝突力の計算
B24: 漂流物の衝突力は、池野らの式を用いて算定する。
D25: F1＝ | F25: S×CMA× | K25: VH | N25: 0.25 | P25: ×g×M
I26: g0.5・ | K26: D0.25・ | M26: L0.25
E27: ＝ | F27: =J13 -> 5 | G27: × | H27: =J11 -> 2 | I27: × | J27: =$J$21 -> 0.71 | R27: 2.5
J28: =$J$12 -> 9.81 | K28: 0.5 | L28: × | M28: =$J$8 -> 2 | N28: 0.25 | O28: × | P28: =$J$9 -> 5 | Q28: 0.25
G29: × | H29: =$J$12 -> 9.81 | I29: × | J29: =$J$10 -> 2.5
E31: ＝ | F31: =ROUND($J$13*$J$11*($J$21/($J$12^0.5)/($J$8^0.25)/($J$9^0.25))^2.5*$J$12*J$10,3) -> 1.423 | H31: kN
